fUSD/lending_fUSD_20240426
["ID","MTS","AMOUNT","RATE_DAILY","PERIOD"]
[323575171,1714091442983,-500.0,0.00010958,2]
[323575172,1714091442992,-500.0,0.00010958,2]
[323575173,1714091443001,-500.0,0.00010958,2]
[323575174,1714091443010,-500.0,0.00010958,2]
[323575175,1714091443020,-500.0,0.00010958,2]
[323575176,1714091443029,-500.0,0.00010958,2]
[323575177,1714091443038,-500.0,0.00010958,2]
[323575178,1714091443047,-500.0,0.00010958,2]
[323575179,1714091443058,-500.0,0.00010958,2]
[323575180,1714091443067,-500.0,0.00010958,2]
[323575181,1714091443077,-500.0,0.00010958,2]
[323575182,1714091443086,-500.0,0.00010958,2]
[323575183,1714091443095,-500.0,0.00010958,2]
[323575184,1714091443104,-500.0,0.00010958,2]
[323575185,1714091443114,-500.0,0.00010958,2]
[323575186,1714091443123,-500.0,0.00010958,2]
[323575187,1714091443132,-500.0,0.00010958,2]
[323575188,1714091443141,-821.57,0.00010958,2]
[323575189,1714091443151,-500.0,0.00010958,2]
[323575190,1714091443160,-500.0,0.00010958,2]
[323575191,1714091443170,-917.75,0.00010958,2]
[323575192,1714091443179,-500.0,0.00010958,2]
[323575193,1714091443190,-500.0,0.00010958,2]
[323575194,1714091443200,-500.0,0.00010958,2]
[323575195,1714091443209,-500.0,0.00010958,2]
[323575196,1714091443220,-500.0,0.00010958,2]
[323575197,1714091443229,-500.0,0.00010958,2]
[323575198,1714091443238,-500.0,0.00010958,2]
[323575199,1714091443248,-500.0,0.00010958,2]
[323575200,1714091443257,-500.0,0.00010958,2]
[323575201,1714091443266,-1289.56,0.00010958,2]
[323575202,1714091443276,-500.0,0.00010958,2]
[323575203,1714091443286,-1165.66,0.00010958,2]
[323575204,1714091443296,-500.0,0.00010958,2]
[323575205,1714091443308,-8183.12,0.00010958,2]
[323575206,1714091443318,-500.0,0.00010958,2]
[323575207,1714091443328,-500.0,0.00010958,2]
[323575208,1714091443337,-500.0,0.00010958,2]
[323575209,1714091443346,-500.0,0.00010958,2]
[323575210,1714091443355,-941.94,0.00010958,2]
[323575211,1714091443364,-500.0,0.00010958,2]
[323575212,1714091443374,-500.0,0.00010958,2]
[323575213,1714091443383,-742.17,0.00010958,2]
[323575214,1714091443393,-713.13,0.00010958,2]
[323575215,1714091443403,-500.0,0.00010958,2]
[323575216,1714091443414,-823.23,0.00010958,2]
[323575217,1714091443424,-500.0,0.00010958,2]
[323575218,1714091443433,-500.0,0.00010958,2]
[323575219,1714091443443,-606.31,0.00010958,2]
[323575220,1714091443452,-1064.54,0.00010958,2]
[323575221,1714091443462,-500.0,0.00010958,2]
[323575222,1714091443472,-1233.14,0.00010958,2]
[323575223,1714091443481,-500.0,0.00010958,2]
[323575224,1714091443490,-500.0,0.00010958,2]
[323575225,1714091443500,-500.0,0.00010958,2]
[323575226,1714091443509,-1397.46,0.00010958,2]
[323575227,1714091443519,-500.0,0.00010958,2]
[323575228,1714091443530,-500.0,0.00010958,2]
[323575229,1714091443541,-1627.82,0.00010958,2]
[323575230,1714091443550,-500.0,0.00010958,2]
[323575231,1714091443561,-567.07,0.00010958,2]
[323575232,1714091443570,-500.0,0.00010958,2]
[323575233,1714091443578,-1476.11,0.00010958,2]
[323575234,1714091443587,-500.0,0.00010958,2]
[323575235,1714091443597,-849.46,0.00010958,2]
[323575236,1714091443606,-766.58,0.00010958,2]
[323575237,1714091443615,-846.95,0.00010958,2]
[323575238,1714091443624,-500.0,0.00010958,2]
[323575239,1714091443633,-500.0,0.00010958,2]
[323575240,1714091443642,-500.0,0.00010958,2]
[323575241,1714091443651,-2250.87,0.00010958,2]
[323575242,1714091443660,-500.0,0.00010958,2]
[323575243,1714091443669,-615.68,0.00010958,2]
[323575244,1714091443754,-500.0,0.00010958,2]
[323575245,1714091443763,-5177.8,0.00010958,2]
[323575246,1714091443774,-1507.58,0.00010958,2]
[323575247,1714091443783,-500.0,0.00010958,2]
[323575248,1714091443793,-500.0,0.00010958,2]
[323575249,1714091443806,-500.0,0.00010958,2]
[323575250,1714091443816,-500.0,0.00010958,2]
[323575251,1714091443824,-500.0,0.00010958,2]
[323575252,1714091443833,-8535.57809052,0.00010958,2]
[323575253,1714091443849,-1654.793628,0.00010958,2]
[323575254,1714091443862,-3589.7064,0.00010958,2]
[323575255,1714091444393,-453.96188148,0.00010958,2]
[323575256,1714091444402,-500.0,0.00010958,2]
[323575257,1714091444412,-500.0,0.00010958,2]
[323575258,1714091444421,-500.0,0.00010958,2]
[323575259,1714091444430,-2765.97,0.00010958,2]
[323575260,1714091444439,-500.0,0.00010958,2]
[323575261,1714091444448,-500.0,0.00010958,2]
[323575262,1714091444457,-500.0,0.00010958,2]
[323575263,1714091444467,-500.0,0.00010958,2]
[323575264,1714091444477,-1441.9209749,0.00010958,2]
[323575265,1714091444564,-1171.3790251,0.00010958,2]
[323575266,1714091444573,-500.0,0.00010958,2]
[323575267,1714091444583,-500.0,0.00010958,2]
[323575268,1714091444593,-1130.02,0.00010958,2]
[323575269,1714091444603,-798.06,0.00010958,2]
[323575270,1714091444611,-500.0,0.00010958,2]
[323575271,1714091444621,-500.0,0.00010958,2]
[323575272,1714091444631,-227.76030345,0.00010958,2]
[323575273,1714091444640,-500.0,0.00010958,2]
[323575274,1714091444649,-605.96,0.00010958,2]
[323575275,1714091444658,-453.15212751,0.00010958,2]
[323575276,1714091444667,-500.0,0.00010958,2]
[323575277,1714091444676,-500.0,0.00010958,2]
[323575278,1714091444685,-500.0,0.00010958,2]
[323575279,1714091444693,-500.0,0.00010958,2]
[323575280,1714091444703,-500.0,0.00010958,2]
[323575281,1714091444712,-500.0,0.00010958,2]
[323575282,1714091444721,-507.25,0.00010958,2]
[323575283,1714091444730,-500.0,0.00010958,2]
[323575284,1714091444739,-791.26,0.00010958,2]
[323575285,1714091444748,-1889.56,0.00010958,2]
[323575286,1714091444757,-772.46,0.00010958,2]
[323575287,1714091444766,-500.0,0.00010958,2]
[323575288,1714091444778,-500.0,0.00010958,2]
[323575289,1714091444791,-500.0,0.00010958,2]
[323575290,1714091444800,-500.0,0.00010958,2]
[323575291,1714091444811,-500.0,0.00010958,2]
[323575292,1714091444820,-500.0,0.00010958,2]
[323575293,1714091444829,-500.0,0.00010958,2]
[323575294,1714091444839,-500.0,0.00010958,2]
[323575295,1714091444847,-500.0,0.00010958,2]
[323575296,1714091444858,-3977.35,0.00010958,2]
[323575297,1714091444867,-500.0,0.00010958,2]
[323575298,1714091444875,-500.0,0.00010958,2]
[323575299,1714091444884,-500.0,0.00010958,2]
[323575300,1714091444893,-500.0,0.00010958,2]
[323575301,1714091444902,-574.33,0.00010958,2]
[323575302,1714091444911,-500.0,0.00010958,2]
[323575303,1714091444921,-500.0,0.00010958,2]
[323575304,1714091444930,-500.0,0.00010958,2]
[323575305,1714091444939,-500.0,0.00010958,2]
[323575306,1714091444949,-851.26,0.00010958,2]
[323575307,1714091444958,-551.14,0.00010958,2]
[323575308,1714091444967,-500.0,0.00010958,2]
[323575309,1714091444976,-1538.29,0.00010958,2]
[323575310,1714091444985,-500.0,0.00010958,2]
[323575311,1714091444994,-500.0,0.00010958,2]
[323575312,1714091445003,-500.0,0.00010958,2]
[323575313,1714091445012,-500.0,0.00010958,2]
[323575314,1714091445022,-500.0,0.00010958,2]
[323575315,1714091445031,-776.49,0.00010958,2]
[323575316,1714091445040,-500.0,0.00010958,2]
[323575317,1714091445051,-500.0,0.00010958,2]
[323575318,1714091445062,-589.0,0.00010958,2]
[323575319,1714091445071,-500.0,0.00010958,2]
[323575320,1714091445080,-500.0,0.00010958,2]
[323575321,1714091445089,-500.0,0.00010958,2]
[323575322,1714091445098,-970.31,0.00010958,2]
[323575323,1714091445107,-784.32,0.00010958,2]
[323575324,1714091445116,-4362.51,0.00010958,2]
[323575325,1714091445126,-500.0,0.00010958,2]
[323575326,1714091445135,-500.0,0.00010958,2]
[323575327,1714091445144,-1142.0,0.00010958,2]
[323575328,1714091445154,-241.62382837,0.00010958,2]
[323575329,1714091445163,-364.05420359,0.00010958,2]
[323575330,1714091445172,-2815.4,0.00010958,2]
[323575331,1714091445181,-500.0,0.00010958,2]
[323575332,1714091445191,-500.0,0.00010958,2]
[323575333,1714091445200,-500.0,0.00010958,2]
[323575334,1714091445209,-500.0,0.00010958,2]
[323575335,1714091445218,-1244.2,0.00010958,2]
[323575336,1714091445227,-500.0,0.00010958,2]
[323575337,1714091445237,-1321.85,0.00010958,2]
[323575338,1714091445246,-1033.94,0.00010958,2]
[323575339,1714091445255,-598.13,0.00010958,2]
[323575340,1714091445265,-500.0,0.00010958,2]
[323575341,1714091445273,-500.0,0.00010958,2]
[323575342,1714091445282,-547.42,0.00010958,2]
[323575343,1714091445292,-500.0,0.00010958,2]
[323575344,1714091445301,-905.36,0.00010958,2]
[323575345,1714091445311,-698.36,0.00010958,2]
[323575346,1714091445321,-500.0,0.00010958,2]
[323575347,1714091445330,-3194.18,0.00010958,2]
[323575348,1714091445339,-500.0,0.00010958,2]
[323575349,1714091445348,-500.0,0.00010958,2]
[323575350,1714091445357,-966.47,0.00010958,2]
[323575351,1714091445366,-500.0,0.00010958,2]
[323575352,1714091445375,-547.59,0.00010958,2]
[323575353,1714091445385,-500.0,0.00010958,2]
[323575354,1714091445394,-500.0,0.00010958,2]
[323575355,1714091445403,-500.0,0.00010958,2]
[323575356,1714091445412,-513.13,0.00010958,2]
[323575357,1714091445422,-1104.26,0.00010958,2]
[323575358,1714091445431,-500.0,0.00010958,2]
[323575359,1714091445439,-758.19,0.00010958,2]
[323575360,1714091445449,-1886.5,0.00010958,2]
[323575361,1714091445457,-641.93,0.00010958,2]
[323575362,1714091445466,-500.0,0.00010958,2]
[323575363,1714091445475,-500.0,0.00010958,2]
[323575364,1714091445484,-500.0,0.00010958,2]
[323575365,1714091445493,-2231.24,0.00010958,2]
[323575366,1714091445502,-500.0,0.00010958,2]
[323575367,1714091445511,-1379.19,0.00010958,2]
[323575368,1714091445520,-555.22,0.00010958,2]
[323575369,1714091445529,-500.0,0.00010958,2]
[323575370,1714091445538,-500.0,0.00010958,2]
[323575371,1714091445547,-500.0,0.00010958,2]
[323575372,1714091445557,-1068.76,0.00010958,2]
[323575373,1714091445567,-500.0,0.00010958,2]
[323575374,1714091445577,-587.16,0.00010958,2]
[323575375,1714091445587,-843.06,0.00010958,2]
[323575376,1714091445597,-1631.78,0.00010958,2]
[323575377,1714091445606,-500.0,0.00010958,2]
[323575378,1714091445615,-570.62,0.00010958,2]
[323575379,1714091445624,-500.0,0.00010958,2]
[323575380,1714091445634,-500.0,0.00010958,2]
[323575381,1714091445643,-500.0,0.00010958,2]
[323575382,1714091445652,-500.0,0.00010958,2]
[323575383,1714091445660,-500.0,0.00010958,2]
[323575384,1714091445670,-500.0,0.00010958,2]
[323575385,1714091445679,-500.0,0.00010958,2]
[323575386,1714091445688,-500.0,0.00010958,2]
[323575387,1714091445697,-500.0,0.00010958,2]
[323575388,1714091445707,-4291.67,0.00010958,2]
[323575389,1714091445716,-500.0,0.00010958,2]
[323575390,1714091445724,-500.0,0.00010958,2]
[323575391,1714091445734,-500.0,0.00010958,2]
[323575392,1714091445743,-500.0,0.00010958,2]
[323575393,1714091445752,-500.0,0.00010958,2]
[323575394,1714091445761,-506.18,0.00010958,2]
[323575395,1714091445775,-3148.37,0.00010958,2]
[323575396,1714091445785,-641.54,0.00010958,2]
[323575397,1714091445794,-500.0,0.00010958,2]
[323575398,1714091445803,-500.0,0.00010958,2]
[323575399,1714091445815,-574.67,0.00010958,2]
[323575400,1714091445824,-500.0,0.00010958,2]
[323575401,1714091445833,-500.0,0.00010958,2]
[323575402,1714091445842,-860.9,0.00010958,2]
[323575403,1714091445852,-2582.01,0.00010958,2]
[323575404,1714091445862,-500.0,0.00010958,2]
[323575405,1714091445871,-500.0,0.00010958,2]
[323575406,1714091445880,-500.0,0.00010958,2]
[323575407,1714091445889,-500.0,0.00010958,2]
[323575408,1714091445899,-500.0,0.00010958,2]
[323575409,1714091445909,-500.0,0.00010958,2]
[323575410,1714091445919,-2723.42,0.00010958,2]
[323575411,1714091445928,-1052.5,0.00010958,2]
[323575412,1714091445939,-500.0,0.00010958,2]
[323575413,1714091445949,-500.0,0.00010958,2]
[323575414,1714091445959,-500.0,0.00010958,2]
[323575415,1714091445969,-1115.24,0.00010958,2]
[323575416,1714091445979,-500.0,0.00010958,2]
[323575417,1714091445988,-500.0,0.00010958,2]
[323575418,1714091445997,-500.0,0.00010958,2]
[323575419,1714091446006,-500.0,0.00010958,2]
[323575420,1714091446015,-500.0,0.00010958,2]
[323575421,1714091446025,-500.0,0.00010958,2]
[323575422,1714091446035,-3233.83,0.00010958,2]
[323575423,1714091446044,-500.0,0.00010958,2]
[323575424,1714091446054,-500.0,0.00010958,2]
[323575425,1714091446064,-500.0,0.00010958,2]
[323575426,1714091446074,-500.0,0.00010958,2]
[323575427,1714091446084,-500.0,0.00010958,2]
[323575428,1714091446093,-1377.24,0.00010958,2]
[323575429,1714091446103,-500.0,0.00010958,2]
[323575430,1714091446112,-500.0,0.00010958,2]
[323575431,1714091446121,-500.0,0.00010958,2]
[323575432,1714091446131,-573.61,0.00010958,2]
[323575433,1714091446141,-500.0,0.00010958,2]
[323575434,1714091446151,-500.0,0.00010958,2]
[323575435,1714091446160,-989.19,0.00010958,2]
[323575436,1714091446171,-947.03,0.00010958,2]
[323575437,1714091446181,-1057.55,0.00010958,2]
[323575438,1714091446190,-640.8,0.00010958,2]
[323575439,1714091446200,-500.0,0.00010958,2]
[323575440,1714091446209,-15581.78,0.00010958,2]
[323575441,1714091446219,-500.0,0.00010958,2]
[323575442,1714091446229,-500.0,0.00010958,2]
[323575443,1714091446239,-500.0,0.00010958,2]
[323575444,1714091446249,-648.48638055,0.00010958,2]
[323575445,1714091446258,-500.0,0.00010958,2]
[323575446,1714091446267,-5005.54,0.00010958,2]
[323575447,1714091446277,-500.0,0.00010958,2]
[323575448,1714091446286,-2661.86,0.00010958,2]
[323575449,1714091446296,-500.0,0.00010958,2]
[323575451,1714091446306,-26.41707146,0.00010958,2]
[323575453,1714091446344,-433.65476328,0.00010958,2]
[323575454,1714091446382,-39.92816526,0.00010958,2]
[323575455,1714091446391,-297.44583474,0.00010958,2]
[323575456,1714091446403,-2900.498,0.00010958,2]
[323575457,1714091446809,-2189.73762716,0.00010857,2]
[323575458,1714091446821,-302.0,0.00010857,2]
[323575459,1714091446833,-263.95605343,0.00010857,2]
[323575460,1714091446846,-2549.59766148,0.00010857,2]
[323575461,1714091446857,-618.40233852,0.00010958,2]
[323575462,1714091446881,-889.8029952,0.00010958,2]
[323575464,1714091446892,-549.89009576,0.00010958,2]
[323575467,1714091446905,-269.21073578,0.00010958,2]
[323575469,1714091446914,-442.77946328,0.00010958,2]
[323575471,1714091446924,-500.0,0.00010958,2]
[323575472,1714091446933,-500.0,0.00010958,2]
[323575474,1714091446943,-73.4202052,0.00010958,2]
[323575478,1714091447388,-426.5797948,0.00010958,2]
[323575479,1714091447398,-406.7397575,0.00010958,2]
[323575480,1714091447410,-93.2602425,0.00010958,2]
[323575481,1714091447420,-500.0,0.00010958,2]
[323575482,1714091447429,-500.0,0.00010958,2]
[323575483,1714091447438,-500.0,0.00010958,2]
[323575484,1714091447448,-18.6237271,0.00010958,2]
[323575485,1714091605858,700.18,8.219e-05,2]
[323575486,1714092140476,687.91,8.219e-05,2]
[323575487,1714092205152,425.75118761,8.132e-05,2]
[323575488,1714092622613,653.51,8.219e-05,2]
[323575501,1714092631588,-262.34603756,9.046e-05,2]
[323575503,1714092631598,-155.0,9.046e-05,2]
[323575504,1714092631607,-155.0,9.047e-05,2]
[323575505,1714092631616,-155.0,9.047e-05,2]
[323575506,1714092631625,-967.84164303,9.047e-05,2]
[323575507,1714092631635,-216.09764885,9.048e-05,2]
[323575508,1714092631644,-14.41467057,9.048e-05,2]
[323575509,1714092631656,-140.58532943,9.048e-05,2]
[323575510,1714092631665,-10569.49520834,9.048e-05,2]
[323575511,1714092631674,-35264.29285231,9.049e-05,2]
[323575512,1714092631686,-4730.25914393,9.05e-05,2]
[323575513,1714092631695,-19015.33544509,9.05e-05,2]
[323575514,1714092631705,-150.0,9.056e-05,2]
[323575515,1714092631714,-150.0,9.068e-05,2]
[323575516,1714092631724,-1000.0,9.101e-05,2]
[323575517,1714092631733,-1500.0,9.166e-05,2]
[323575518,1714092631742,-674.02,9.208e-05,2]
[323575519,1714092631751,-183.37,9.231e-05,2]
[323575520,1714092631762,-155.44,9.282e-05,2]
[323575521,1714092631771,-3042.77,9.288e-05,2]
[323575522,1714092631781,-753.01,9.303e-05,2]
[323575523,1714092631790,-155.44,9.329e-05,2]
[323575524,1714092631799,-520.69,9.455e-05,2]
[323575525,1714092631810,-664.17,9.67e-05,2]
[323575526,1714092631819,-150.99,9.67e-05,2]
[323575527,1714092631830,-150.99,9.67e-05,2]
[323575528,1714092631839,-17968.61,9.67e-05,2]
[323575529,1714092631849,-150.0,9.817e-05,2]
[323575530,1714092631858,-179.26,9.884e-05,2]
[323575531,1714092631868,-165.26,9.884e-05,2]
[323575532,1714092631877,-155.05,9.958e-05,2]
[323575533,1714092631886,-155.05,0.00010061,2]
[323575534,1714092631896,-150.0,0.00010073,2]
[323575535,1714092631905,-155.05,0.00010165,2]
[323575536,1714092631915,-155.05,0.00010269,2]
[323575537,1714092631924,-1131.40771572,0.00010285,2]
[323575538,1714092631935,-387.49,0.00010287,2]
[323575539,1714092631944,-387.49,0.00010289,2]
[323575540,1714092631954,-387.49,0.00010292,2]
[323575541,1714092631963,-57467.475,0.00010292,2]
[323575542,1714092631972,-387.49,0.00010295,2]
[323575543,1714092631983,-387.49,0.00010297,2]
[323575544,1714092631992,-387.49,0.000103,2]
[323575545,1714092632003,-387.49,0.00010303,2]
[323575546,1714092632013,-387.49,0.00010306,2]
[323575547,1714092632023,-387.49,0.00010308,2]
[323575548,1714092632034,-387.49,0.00010311,2]
[323575551,1714092632044,-387.49,0.00010314,2]
[323575554,1714092632054,-387.49,0.00010316,2]
[323575557,1714092632063,-387.49,0.00010319,2]
[323575559,1714092632073,-387.49,0.00010322,2]
[323575560,1714092632083,-387.49,0.00010325,2]
[323575561,1714092632093,-387.49,0.00010327,2]
[323575562,1714092632102,-387.49,0.0001033,2]
[323575563,1714092632112,-387.49,0.00010333,2]
[323575564,1714092632122,-387.49,0.00010335,2]
[323575565,1714092632131,-387.49,0.00010338,2]
[323575566,1714092632141,-150.0,0.00010341,2]
[323575567,1714092632151,-155.05,0.00010373,2]
[323575568,1714092632161,-653.51,0.00010434,2]
[323575569,1714092632172,-753.01,0.00010466,2]
[323575570,1714092632185,-155.05,0.00010477,2]
[323575571,1714092632198,-150.0,0.00010538,2]
[323575572,1714092632208,-520.69,0.00010637,2]
[323575573,1714092632218,-20305.5748,0.00010658,2]
[323575574,1714092632228,-575.261,0.00010658,2]
[323575575,1714092632238,-668.9496,0.00010658,2]
[323575576,1714092632248,-361.45701324,0.00010669,2]
[323575577,1714092632257,-179.0919991,0.00010748,2]
[323575578,1714092632267,-2302.11826297,0.00010756,2]
[323575579,1714092632277,-6405.91956621,0.00010756,2]
[323575580,1714092632286,-1013.90044479,0.00010756,2]
[323575581,1714092632296,-155.0,0.00010756,2]
[323575582,1714092632305,-165.77837514,0.00010756,2]
[323575583,1714092632315,-212.47166625,0.00010756,2]
[323575584,1714092632324,-155.0,0.00010756,2]
[323575585,1714092632333,-408.72028462,0.00010756,2]
[323575586,1714092632343,-3160.43141732,0.00010756,2]
[323575587,1714092632353,-11092.95192238,0.00010756,2]
[323575588,1714092632362,-249.10410252,0.00010757,2]
[323575589,1714092632371,-180395.8459147,0.00010758,2]
[323575590,1714092632383,-818.26057678,0.00010758,2]
[323575591,1714092632394,-485.80288671,0.00010758,2]
[323575592,1714092632410,-5438.39379598,0.00010758,2]
[323575593,1714092632445,-286.634,0.00010758,2]
[323575594,1714092632457,-7154.56908397,0.00010758,2]
[323575595,1714092632484,-36063.07514186,0.00010758,2]
[323575596,1714092632493,-1000.0,0.00010758,2]
[323575597,1714092632503,-500.0,0.00010758,2]
[323575598,1714092632512,-63381.0526,0.00010758,2]
[323575599,1714092632521,-681.17948523,0.00010848,2]
[323575600,1714092632530,-5430.31558672,0.00010858,2]
[323575601,1714092632539,-160.3639009,0.00010858,2]
[323575602,1714092632548,-173.47807224,0.00010858,2]
[323575603,1714092632557,-1000.0,0.00010858,2]
[323575604,1714092632567,-179.09199906,0.00010912,2]
[323575605,1714092632577,-262.71364595,0.00010957,2]
[323575606,1714092632587,-500.0,0.00010958,2]
[323575607,1714092632596,-500.90215316,0.00010958,2]
[323575608,1714092632605,-500.0,0.00010958,2]
[323575609,1714092632615,-500.0,0.00010958,2]
[323575610,1714092632624,-500.0,0.00010958,2]
[323575611,1714092632634,-500.0,0.00010958,2]
[323575612,1714092632644,-500.0,0.00010958,2]
[323575613,1714092632653,-500.0,0.00010958,2]
[323575614,1714092632662,-500.0,0.00010958,2]
[323575615,1714092632671,-2972.29362096,0.00010958,2]
[323575616,1714092632681,-500.0,0.00010958,2]
[323575617,1714092632693,-25629.61965512,0.00010958,2]
[323575618,1714092632725,-617.92920426,0.00010958,2]
[323575623,1714092637671,-771.07115909,0.00010958,2]
[323575624,1714092637682,-882.06164822,0.00010958,2]
[323575625,1714092637695,-829.79265962,0.00010958,2]
[323575626,1714092637706,-3390.0,0.00010958,2]
[323575627,1714092637716,-3567.549808,0.00010958,2]
[323575628,1714092637733,-6843.9,0.00010958,2]
[323575629,1714092638142,-253574.01605045,0.00010958,2]
[323575630,1714092638153,-179.7000076,0.00010958,2]
[323575631,1714092638164,-500.0,0.00010958,2]
[323575632,1714092638173,-500.0,0.00010958,2]
[323575633,1714092638182,-500.0,0.00010958,2]
[323575634,1714092638192,-408.61554877,0.00010958,2]
[323575635,1714092638201,-500.0,0.00010958,2]
[323575636,1714092638211,-610.76,0.00010958,2]
[323575637,1714092638220,-500.0,0.00010958,2]
[323575638,1714092638229,-500.0,0.00010958,2]
[323575639,1714092638239,-500.0,0.00010958,2]
[323575640,1714092638248,-257.12442546,0.00010958,2]
[323575642,1714092638257,-500.0,0.00010958,2]
[323575645,1714092638266,-500.0,0.00010958,2]
[323575648,1714092638275,-500.0,0.00010958,2]
[323575651,1714092638285,-500.0,0.00010958,2]
[323575653,1714092638294,-391.97456221,0.00010958,2]
[323575655,1714092638303,-500.0,0.00010958,2]
[323575657,1714092638312,-547.80745508,0.00010958,2]
[323575660,1714092638321,-500.0,0.00010958,2]
[323575663,1714092638330,-237.98874207,0.00010958,2]
[323575665,1714092638339,-500.0,0.00010958,2]
[323575667,1714092638348,-500.0,0.00010958,2]
[323575669,1714092638357,-500.0,0.00010958,2]
[323575671,1714092638366,-500.0,0.00010958,2]
[323575673,1714092638375,-500.0,0.00010958,2]
[323575675,1714092638385,-500.0,0.00010958,2]
[323575677,1714092638394,-500.0,0.00010958,2]
[323575679,1714092638403,-500.0,0.00010958,2]
[323575681,1714092638413,-500.0,0.00010958,2]
[323575683,1714092638422,-515.19741678,0.00010958,2]
[323575685,1714092638432,-500.0,0.00010958,2]
[323575687,1714092638442,-373.39555973,0.00010958,2]
[323575688,1714092638452,-500.0,0.00010958,2]
[323575689,1714092638461,-500.0,0.00010958,2]
[323575690,1714092638471,-500.0,0.00010958,2]
[323575691,1714092638480,-500.0,0.00010958,2]
[323575692,1714092638490,-500.0,0.00010958,2]
[323575693,1714092638499,-500.0,0.00010958,2]
[323575694,1714092638508,-500.0,0.00010958,2]
[323575695,1714092638517,-500.0,0.00010958,2]
[323575696,1714092638526,-500.0,0.00010958,2]
[323575697,1714092638535,-500.0,0.00010958,2]
[323575698,1714092638544,-501.18990107,0.00010958,2]
[323575699,1714092638552,-500.0,0.00010958,2]
[323575700,1714092638562,-500.0,0.00010958,2]
[323575701,1714092638571,-500.0,0.00010958,2]
[323575702,1714092638580,-500.0,0.00010958,2]
[323575703,1714092638590,-500.0,0.00010958,2]
[323575704,1714092638599,-500.0,0.00010958,2]
[323575705,1714092638608,-500.0,0.00010958,2]
[323575706,1714092638618,-500.0,0.00010958,2]
[323575707,1714092638627,-500.0,0.00010958,2]
[323575708,1714092638637,-500.0,0.00010958,2]
[323575709,1714092638647,-500.0,0.00010958,2]
[323575710,1714092638656,-500.0,0.00010958,2]
[323575711,1714092638665,-500.0,0.00010958,2]
[323575712,1714092638674,-500.0,0.00010958,2]
[323575713,1714092638683,-500.0,0.00010958,2]
[323575714,1714092638695,-500.0,0.00010958,2]
[323575715,1714092638705,-500.0,0.00010958,2]
[323575716,1714092638713,-500.0,0.00010958,2]
[323575717,1714092638722,-500.0,0.00010958,2]
[323575718,1714092638731,-500.0,0.00010958,2]
[323575719,1714092638740,-500.0,0.00010958,2]
[323575720,1714092638749,-500.0,0.00010958,2]
[323575721,1714092638758,-500.0,0.00010958,2]
[323575722,1714092638767,-914.83,0.00010958,2]
[323575723,1714092638776,-500.0,0.00010958,2]
[323575724,1714092638785,-500.0,0.00010958,2]
[323575725,1714092638794,-500.0,0.00010958,2]
[323575726,1714092638803,-500.0,0.00010958,2]
[323575727,1714092638811,-500.0,0.00010958,2]
[323575728,1714092638821,-500.0,0.00010958,2]
[323575729,1714092638830,-500.0,0.00010958,2]
[323575730,1714092638839,-500.0,0.00010958,2]
[323575731,1714092638848,-500.0,0.00010958,2]